[Event "Titled Tuesday Blitz February 28 Early 2023"]
[White "Nur-Mukhametova, Alisa"]
[Black "Toncheva, Nadya"]
[WhiteFideId "54117739"]
[BlackFideId "2924056"]
[WhiteElo "2007"]
[BlackElo "2101"]
[Result "1-0"]
[Round "09"]
[TimeControl "180+2"]
[Date "2023.02.28"]
[WhiteClock "0:00:14"]
[BlackClock "0:00:05"]

1. d4 {[%clk 0:02:57]}  d5 {[%clk 0:02:59]} 2. c4 {[%clk 0:02:55]}  dxc4 {[%clk 0:03:00]} 3. Nf3 {[%clk 0:02:53]}  Nf6 {[%clk 0:03:00]} 4. e3 {[%clk 0:02:50]}  e6 {[%clk 0:03:00]} 5. Bxc4 {[%clk 0:02:50]}  a6 {[%clk 0:03:01]} 6. O-O {[%clk 0:02:49]}  c5 {[%clk 0:03:01]} 7. b3 {[%clk 0:02:47]}  b5 {[%clk 0:02:59]} 8. Be2 {[%clk 0:02:47]}  Bb7 {[%clk 0:02:59]} 9. Bb2 {[%clk 0:02:47]}  Nbd7 {[%clk 0:02:59]} 10. Nbd2 {[%clk 0:02:44]}  Qb6 {[%clk 0:02:56]} 11. Rc1 {[%clk 0:02:42]}  Be7 {[%clk 0:02:55]} 12. dxc5 {[%clk 0:02:38]}  Nxc5 {[%clk 0:02:48]} 13. Bd4 {[%clk 0:02:37]}  b4 {[%clk 0:02:13]} 14. Nc4 {[%clk 0:02:16]}  Qd8 {[%clk 0:02:10]} 15. Qd2 {[%clk 0:01:50]}  Nce4 {[%clk 0:02:03]} 16. Qb2 {[%clk 0:01:49]}  Rc8 {[%clk 0:01:49]} 17. Rfd1 {[%clk 0:01:43]}  Bd5 {[%clk 0:01:35]} 18. Nfe5 {[%clk 0:01:24]}  O-O {[%clk 0:01:21]} 19. f3 {[%clk 0:01:16]}  Nd6 {[%clk 0:01:01]} 20. Nb6 {[%clk 0:01:12]}  Rb8 {[%clk 0:00:48]} 21. Nxd5 {[%clk 0:01:11]}  Nxd5 {[%clk 0:00:43]} 22. Nc6 {[%clk 0:01:11]}  Qe8 {[%clk 0:00:34]} 23. Nxb8 {[%clk 0:01:03]}  Qxb8 {[%clk 0:00:35]} 24. e4 {[%clk 0:00:59]}  Nf4 {[%clk 0:00:34]} 25. Bxa6 {[%clk 0:00:53]}  Ng6 {[%clk 0:00:22]} 26. Kh1 {[%clk 0:00:45]}  f6 {[%clk 0:00:20]} 27. Bc5 {[%clk 0:00:33]}  Rd8 {[%clk 0:00:18]} 28. Qe2 {[%clk 0:00:21]}  Nf7 {[%clk 0:00:18]} 29. Bxe7 {[%clk 0:00:18]}  Nxe7 {[%clk 0:00:18]} 30. Bc4 {[%clk 0:00:18]}  Rxd1+ {[%clk 0:00:18]} 31. Rxd1 {[%clk 0:00:18]}  Qb6 {[%clk 0:00:10]} 32. Qd2 {[%clk 0:00:17]}  h6 {[%clk 0:00:10]} 33. Qd7 {[%clk 0:00:17]}  Ng6 {[%clk 0:00:07]} 34. Qxe6 {[%clk 0:00:15]}  Qf2 {[%clk 0:00:05]} 35. Qxf7+ {[%clk 0:00:14]} 1-0


[Site "https://www.chess.com"]

[Event "Titled Tuesday Blitz February 28 Early 2023"]
[White "Castellanos Villela, Alejandro"]
[Black "Van Dael, Siem"]
[WhiteFideId "3446379"]
[BlackFideId "1049771"]
[WhiteElo "2102"]
[BlackElo "2336"]
[Result "1-0"]
[Round "09"]
[TimeControl "180+2"]
[Date "2023.02.28"]
[WhiteClock "0:01:04"]
[BlackClock "0:01:12"]

1. Nf3 {[%clk 0:03:00]}  Nf6 {[%clk 0:02:51]} 2. g3 {[%clk 0:03:00]}  g6 {[%clk 0:02:48]} 3. Bg2 {[%clk 0:02:59]}  Bg7 {[%clk 0:02:49]} 4. b3 {[%clk 0:02:59]}  O-O {[%clk 0:02:49]} 5. Bb2 {[%clk 0:02:59]}  d6 {[%clk 0:02:50]} 6. d4 {[%clk 0:02:59]}  b5 {[%clk 0:02:47]} 7. Nfd2 {[%clk 0:02:57]}  c6 {[%clk 0:02:41]} 8. c4 {[%clk 0:02:57]}  bxc4 {[%clk 0:02:40]} 9. Nxc4 {[%clk 0:02:56]}  Be6 {[%clk 0:02:35]} 10. O-O {[%clk 0:02:55]}  Bd5 {[%clk 0:02:34]} 11. f3 {[%clk 0:02:51]}  Nbd7 {[%clk 0:02:26]} 12. e4 {[%clk 0:02:49]}  Bxc4 {[%clk 0:02:26]} 13. bxc4 {[%clk 0:02:50]}  e5 {[%clk 0:02:26]} 14. d5 {[%clk 0:02:28]}  Qb6+ {[%clk 0:02:25]} 15. Rf2 {[%clk 0:02:26]}  cxd5 {[%clk 0:02:24]} 16. cxd5 {[%clk 0:02:25]}  Nc5 {[%clk 0:02:20]} 17. Nc3 {[%clk 0:02:23]}  Rab8 {[%clk 0:02:16]} 18. Rb1 {[%clk 0:02:22]}  Rfc8 {[%clk 0:02:16]} 19. Bf1 {[%clk 0:02:01]}  Bh6 {[%clk 0:02:11]} 20. Kg2 {[%clk 0:02:00]}  Be3 {[%clk 0:02:07]} 21. Rc2 {[%clk 0:01:57]}  Bd4 {[%clk 0:02:03]} 22. Nb5 {[%clk 0:01:33]}  a6 {[%clk 0:01:47]} 23. Nxd4 {[%clk 0:01:31]}  exd4 {[%clk 0:01:46]} 24. Qxd4 {[%clk 0:01:30]}  Qd8 {[%clk 0:01:20]} 25. Rbc1 {[%clk 0:01:21]}  Ncd7 {[%clk 0:01:16]} 26. Rxc8 {[%clk 0:01:09]}  Rxc8 {[%clk 0:01:17]} 27. Rc6 {[%clk 0:01:08]}  Qa5 {[%clk 0:01:12]} 28. Rxc8+ {[%clk 0:01:04]} 1-0


[Site "https://www.chess.com"]

[Event "Titled Tuesday Blitz February 28 Early 2023"]
[White "Rian, Kapriaga"]
[Black "Kislov, Oleg"]
[WhiteFideId "7103263"]
[BlackFideId "13503774"]
[WhiteElo "2386"]
[BlackElo "2186"]
[Result "0-1"]
[Round "09"]
[TimeControl "180+2"]
[Date "2023.02.28"]
[WhiteClock "0:00:03"]
[BlackClock "0:00:16"]

1. d4 {[%clk 0:03:00]}  d5 {[%clk 0:02:49]} 2. Nf3 {[%clk 0:02:59]}  Nf6 {[%clk 0:02:49]} 3. Bf4 {[%clk 0:02:57]}  e6 {[%clk 0:02:48]} 4. e3 {[%clk 0:02:56]}  c5 {[%clk 0:02:48]} 5. Nbd2 {[%clk 0:02:55]}  Nc6 {[%clk 0:02:47]} 6. c3 {[%clk 0:02:54]}  Bd6 {[%clk 0:02:47]} 7. Ne5 {[%clk 0:02:52]}  cxd4 {[%clk 0:02:31]} 8. exd4 {[%clk 0:02:51]}  Qc7 {[%clk 0:02:23]} 9. Ndf3 {[%clk 0:02:49]}  Ne4 {[%clk 0:02:23]} 10. Bd3 {[%clk 0:02:16]}  f6 {[%clk 0:02:06]} 11. Nxc6 {[%clk 0:02:14]}  Bxf4 {[%clk 0:01:58]} 12. Nb4 {[%clk 0:02:11]}  Nxc3 {[%clk 0:01:30]} 13. Qc2 {[%clk 0:01:56]}  Ne4 {[%clk 0:01:25]} 14. Bxe4 {[%clk 0:01:42]}  dxe4 {[%clk 0:01:24]} 15. Qxe4 {[%clk 0:01:39]}  Bd6 {[%clk 0:01:19]} 16. Nd3 {[%clk 0:01:32]}  Qa5+ {[%clk 0:01:18]} 17. Ke2 {[%clk 0:01:14]}  O-O {[%clk 0:01:14]} 18. Rhd1 {[%clk 0:01:06]}  Qd5 {[%clk 0:01:03]} 19. Qxd5 {[%clk 0:01:04]}  exd5 {[%clk 0:01:03]} 20. h3 {[%clk 0:01:03]}  b6 {[%clk 0:01:04]} 21. Kf1 {[%clk 0:00:58]}  Ba6 {[%clk 0:01:04]} 22. Kg1 {[%clk 0:00:58]}  Rfe8 {[%clk 0:01:04]} 23. Rac1 {[%clk 0:00:46]}  Re2 {[%clk 0:01:00]} 24. Rb1 {[%clk 0:00:35]}  Rc8 {[%clk 0:00:53]} 25. Nfe1 {[%clk 0:00:26]}  Rc4 {[%clk 0:00:38]} 26. Nc1 {[%clk 0:00:18]}  Re4 {[%clk 0:00:33]} 27. Nb3 {[%clk 0:00:17]}  Re2 {[%clk 0:00:30]} 28. Nc1 {[%clk 0:00:15]}  Re8 {[%clk 0:00:28]} 29. b3 {[%clk 0:00:14]}  Rc3 {[%clk 0:00:27]} 30. Nf3 {[%clk 0:00:14]}  Kf7 {[%clk 0:00:23]} 31. Rb2 {[%clk 0:00:14]}  Rec8 {[%clk 0:00:22]} 32. Ne2 {[%clk 0:00:11]}  Rc2 {[%clk 0:00:22]} 33. Rxc2 {[%clk 0:00:11]}  Rxc2 {[%clk 0:00:23]} 34. Nc1 {[%clk 0:00:10]}  Ba3 {[%clk 0:00:23]} 35. Nd3 {[%clk 0:00:09]}  Bxd3 {[%clk 0:00:21]} 36. Rxd3 {[%clk 0:00:09]}  Rxa2 {[%clk 0:00:21]} 37. g3 {[%clk 0:00:08]}  Bd6 {[%clk 0:00:20]} 38. Kg2 {[%clk 0:00:07]}  a5 {[%clk 0:00:20]} 39. Nd2 {[%clk 0:00:07]}  b5 {[%clk 0:00:19]} 40. Nf1 {[%clk 0:00:07]}  a4 {[%clk 0:00:19]} 41. bxa4 {[%clk 0:00:07]}  bxa4 {[%clk 0:00:19]} 42. Ne3 {[%clk 0:00:07]}  Ke6 {[%clk 0:00:19]} 43. Rc3 {[%clk 0:00:07]}  a3 {[%clk 0:00:19]} 44. Rc6 {[%clk 0:00:07]}  Rb2 {[%clk 0:00:17]} 45. Ra6 {[%clk 0:00:07]}  a2 {[%clk 0:00:16]} 46. Kf3 {[%clk 0:00:07]}  g6 {[%clk 0:00:14]} 47. g4 {[%clk 0:00:06]}  f5 {[%clk 0:00:13]} 48. gxf5+ {[%clk 0:00:06]}  gxf5 {[%clk 0:00:14]} 49. Ng2 {[%clk 0:00:04]}  Rb3+ {[%clk 0:00:14]} 50. Ne3 {[%clk 0:00:04]}  Ra3 {[%clk 0:00:15]} 51. Rxa3 {[%clk 0:00:03]}  Bxa3 {[%clk 0:00:16]} 52. Nc2 {[%clk 0:00:03]}  Bb2 {[%clk 0:00:16]} 0-1


[Site "https://www.chess.com"]

[Event "Titled Tuesday Blitz February 28 Early 2023"]
[White "Fernandez Garcia, Gumersindo"]
[Black "Abdilkhair, Abilmansur"]
[WhiteFideId "24516740"]
[BlackFideId "13716417"]
[WhiteElo "2093"]
[BlackElo "2216"]
[Result "0-1"]
[Round "09"]
[TimeControl "180+2"]
[Date "2023.02.28"]
[WhiteClock "0:00:24"]
[BlackClock "0:00:05"]

1. e4 {[%clk 0:02:59]}  e5 {[%clk 0:03:00]} 2. Nf3 {[%clk 0:02:57]}  Nc6 {[%clk 0:03:00]} 3. d4 {[%clk 0:02:55]}  exd4 {[%clk 0:03:00]} 4. Bc4 {[%clk 0:02:46]}  Bc5 {[%clk 0:02:57]} 5. c3 {[%clk 0:02:45]}  Nf6 {[%clk 0:02:52]} 6. cxd4 {[%clk 0:02:44]}  Bb4+ {[%clk 0:02:52]} 7. Bd2 {[%clk 0:02:44]}  Bxd2+ {[%clk 0:02:50]} 8. Nbxd2 {[%clk 0:02:44]}  d5 {[%clk 0:02:51]} 9. exd5 {[%clk 0:02:41]}  Nxd5 {[%clk 0:02:52]} 10. O-O {[%clk 0:02:41]}  O-O {[%clk 0:02:52]} 11. Re1 {[%clk 0:02:36]}  Bg4 {[%clk 0:02:24]} 12. h3 {[%clk 0:02:35]}  Bh5 {[%clk 0:02:24]} 13. a3 {[%clk 0:02:18]}  Nb6 {[%clk 0:02:10]} 14. Be2 {[%clk 0:01:53]}  Re8 {[%clk 0:02:04]} 15. Rc1 {[%clk 0:01:42]}  Qf6 {[%clk 0:02:01]} 16. Bb5 {[%clk 0:01:27]}  Rxe1+ {[%clk 0:01:45]} 17. Qxe1 {[%clk 0:01:28]}  Nxd4 {[%clk 0:01:33]} 18. Nxd4 {[%clk 0:01:27]}  Qxd4 {[%clk 0:01:34]} 19. Rxc7 {[%clk 0:01:20]}  Rd8 {[%clk 0:01:33]} 20. Nf1 {[%clk 0:01:20]}  a6 {[%clk 0:01:25]} 21. Be2 {[%clk 0:01:03]}  Qe5 {[%clk 0:01:19]} 22. Rc2 {[%clk 0:00:52]}  Bg6 {[%clk 0:00:39]} 23. Rc1 {[%clk 0:00:52]}  Qxb2 {[%clk 0:00:37]} 24. Bf3 {[%clk 0:00:50]}  Qxa3 {[%clk 0:00:27]} 25. Rc7 {[%clk 0:00:47]}  Rd7 {[%clk 0:00:17]} 26. Rxb7 {[%clk 0:00:32]}  Rxb7 {[%clk 0:00:16]} 27. Bxb7 {[%clk 0:00:33]}  h6 {[%clk 0:00:14]} 28. Qe8+ {[%clk 0:00:29]}  Kh7 {[%clk 0:00:14]} 29. Be4 {[%clk 0:00:27]}  Qc1 {[%clk 0:00:10]} 30. Bxg6+ {[%clk 0:00:26]}  fxg6 {[%clk 0:00:10]} 31. Qe6 {[%clk 0:00:25]}  Qc5 {[%clk 0:00:09]} 32. Ne3 {[%clk 0:00:21]}  a5 {[%clk 0:00:08]} 33. Ng4 {[%clk 0:00:20]}  a4 {[%clk 0:00:06]} 34. Qf7 {[%clk 0:00:20]}  Qc1+ {[%clk 0:00:04]} 35. Kh2 {[%clk 0:00:19]}  Qa1 {[%clk 0:00:03]} 36. h4 {[%clk 0:00:17]}  a3 {[%clk 0:00:03]} 37. Qb7 {[%clk 0:00:17]}  Qd4 {[%clk 0:00:02]} 38. Kh3 {[%clk 0:00:13]}  Qd3+ {[%clk 0:00:01]} 39. g3 {[%clk 0:00:13]}  Qd4 {[%clk 0:00:02]} 40. Qa7 {[%clk 0:00:12]}  Qd5 {[%clk 0:00:01]} 41. Nf6+ {[%clk 0:00:11]}  Kh8 {[%clk 0:00:01]} 42. Nxd5 {[%clk 0:00:11]}  Nxd5 {[%clk 0:00:01]} 43. Qxa3 {[%clk 0:00:12]}  Nf6 {[%clk 0:00:02]} 44. Qf8+ {[%clk 0:00:12]}  Kh7 {[%clk 0:00:03]} 45. g4 {[%clk 0:00:12]}  Nd7 {[%clk 0:00:03]} 46. Qe7 {[%clk 0:00:12]}  Nf6 {[%clk 0:00:03]} 47. Qe6 {[%clk 0:00:13]}  Ng8 {[%clk 0:00:02]} 48. f4 {[%clk 0:00:13]}  Nf6 {[%clk 0:00:03]} 49. Qf7 {[%clk 0:00:13]}  Ne4 {[%clk 0:00:02]} 50. g5 {[%clk 0:00:13]}  Nd6 {[%clk 0:00:02]} 51. Qe6 {[%clk 0:00:12]}  Nf5 {[%clk 0:00:02]} 52. Kg4 {[%clk 0:00:12]}  h5+ {[%clk 0:00:01]} 53. Kf3 {[%clk 0:00:13]}  Nd4+ {[%clk 0:00:02]} 54. Ke4 {[%clk 0:00:13]}  Nxe6 {[%clk 0:00:03]} 55. Ke5 {[%clk 0:00:11]}  Nc7 {[%clk 0:00:03]} 56. Kd6 {[%clk 0:00:11]}  Nb5+ {[%clk 0:00:02]} 57. Ke5 {[%clk 0:00:12]}  Kg8 {[%clk 0:00:02]} 58. Kd5 {[%clk 0:00:12]}  Kf7 {[%clk 0:00:02]} 59. Kc5 {[%clk 0:00:13]}  Nc3 {[%clk 0:00:02]} 60. Kd4 {[%clk 0:00:13]}  Ne2+ {[%clk 0:00:03]} 61. Ke3 {[%clk 0:00:14]}  Ng3 {[%clk 0:00:04]} 62. Kf3 {[%clk 0:00:14]}  Nf5 {[%clk 0:00:04]} 63. Ke4 {[%clk 0:00:14]}  Ke6 {[%clk 0:00:05]} 64. Kf3 {[%clk 0:00:15]}  Kd5 {[%clk 0:00:05]} 65. Kf2 {[%clk 0:00:16]}  Ke4 {[%clk 0:00:05]} 66. Kg2 {[%clk 0:00:14]}  Kxf4 {[%clk 0:00:06]} 67. Kh3 {[%clk 0:00:14]}  Kf3 {[%clk 0:00:06]} 68. Kh2 {[%clk 0:00:15]}  Nxh4 {[%clk 0:00:06]} 69. Kh3 {[%clk 0:00:15]}  Nf5 {[%clk 0:00:07]} 70. Kh2 {[%clk 0:00:16]}  Kg4 {[%clk 0:00:07]} 71. Kg2 {[%clk 0:00:16]}  Kxg5 {[%clk 0:00:08]} 72. Kh2 {[%clk 0:00:16]}  Kf4 {[%clk 0:00:08]} 73. Kg2 {[%clk 0:00:17]}  g5 {[%clk 0:00:07]} 74. Kh2 {[%clk 0:00:18]}  g4 {[%clk 0:00:08]} 75. Kg2 {[%clk 0:00:19]}  h4 {[%clk 0:00:07]} 76. Kh2 {[%clk 0:00:20]}  h3 {[%clk 0:00:05]} 77. Kg1 {[%clk 0:00:20]}  g3 {[%clk 0:00:05]} 78. Kh1 {[%clk 0:00:21]}  Nd4 {[%clk 0:00:04]} 79. Kg1 {[%clk 0:00:22]}  Ne2+ {[%clk 0:00:03]} 80. Kh1 {[%clk 0:00:22]}  g2+ {[%clk 0:00:03]} 81. Kh2 {[%clk 0:00:23]}  g1=Q+ {[%clk 0:00:04]} 82. Kxh3 {[%clk 0:00:24]}  Qg3# {[%clk 0:00:05]} 0-1


[Site "https://www.chess.com"]

[Event "Titled Tuesday Blitz February 28 Early 2023"]
[White "Mazurkiewicz, Michal"]
[Black "Melikhov, Evgeny V."]
[WhiteFideId "1124943"]
[BlackFideId "4122046"]
[WhiteElo "2054"]
[BlackElo "2158"]
[Result "1-0"]
[Round "09"]
[TimeControl "180+2"]
[Date "2023.02.28"]
[WhiteClock "0:01:35"]
[BlackClock "0:01:07"]

1. e4 {[%clk 0:03:00]}  e5 {[%clk 0:02:59]} 2. Nf3 {[%clk 0:03:00]}  Nc6 {[%clk 0:02:59]} 3. d3 {[%clk 0:03:00]}  d5 {[%clk 0:02:57]} 4. exd5 {[%clk 0:02:58]}  Qxd5 {[%clk 0:02:56]} 5. Nc3 {[%clk 0:02:59]}  Qd7 {[%clk 0:02:50]} 6. g3 {[%clk 0:02:59]}  Bd6 {[%clk 0:02:49]} 7. Bg2 {[%clk 0:02:59]}  Nf6 {[%clk 0:02:49]} 8. O-O {[%clk 0:02:59]}  Qe7 {[%clk 0:02:48]} 9. Re1 {[%clk 0:02:59]}  Be6 {[%clk 0:02:46]} 10. Ng5 {[%clk 0:02:43]}  Bd7 {[%clk 0:02:16]} 11. f4 {[%clk 0:02:42]}  O-O-O {[%clk 0:02:12]} 12. Nf3 {[%clk 0:02:39]}  Ng4 {[%clk 0:02:02]} 13. d4 {[%clk 0:02:25]}  Be6 {[%clk 0:01:29]} 14. fxe5 {[%clk 0:01:53]}  Ncxe5 {[%clk 0:01:26]} 15. h3 {[%clk 0:01:34]}  Nxf3+ {[%clk 0:01:16]} 16. Qxf3 {[%clk 0:01:35]}  Nf6 {[%clk 0:01:08]} 17. Qxb7+ {[%clk 0:01:34]}  Kd7 {[%clk 0:01:07]} 18. Bc6# {[%clk 0:01:35]} 1-0


[Site "https://www.chess.com"]

[Event "Titled Tuesday Blitz February 28 Early 2023"]
[White "Buscar, Michael"]
[Black "Sernecki, Franciszek"]
[WhiteFideId "2603616"]
[BlackFideId "1169297"]
[WhiteElo "2010"]
[BlackElo "2210"]
[Result "1-0"]
[Round "09"]
[TimeControl "180+2"]
[Date "2023.02.28"]
[WhiteClock "0:02:11"]
[BlackClock "0:02:30"]

1. d4 {[%clk 0:03:00]}  Nf6 {[%clk 0:02:54]} 2. Nf3 {[%clk 0:03:00]}  c5 {[%clk 0:02:54]} 3. e3 {[%clk 0:03:00]}  cxd4 {[%clk 0:02:54]} 4. exd4 {[%clk 0:03:00]}  d5 {[%clk 0:02:55]} 5. c3 {[%clk 0:02:57]}  Bg4 {[%clk 0:02:56]} 6. Be2 {[%clk 0:02:58]}  Nc6 {[%clk 0:02:56]} 7. O-O {[%clk 0:02:58]}  e6 {[%clk 0:02:56]} 8. Nbd2 {[%clk 0:02:58]}  Bd6 {[%clk 0:02:57]} 9. Re1 {[%clk 0:02:59]}  O-O {[%clk 0:02:57]} 10. Nf1 {[%clk 0:02:59]}  Ne4 {[%clk 0:02:54]} 11. Ne3 {[%clk 0:02:57]}  Bh5 {[%clk 0:02:51]} 12. g3 {[%clk 0:02:57]}  Qc7 {[%clk 0:02:47]} 13. Ng2 {[%clk 0:02:53]}  f5 {[%clk 0:02:44]} 14. Bf4 {[%clk 0:02:51]}  g5 {[%clk 0:02:41]} 15. Nxg5 {[%clk 0:02:39]}  Bxe2 {[%clk 0:02:34]} 16. Qxe2 {[%clk 0:02:36]}  Bxf4 {[%clk 0:02:34]} 17. Nxe6 {[%clk 0:02:27]}  Qd6 {[%clk 0:02:30]} 18. Nexf4 {[%clk 0:02:11]} 1-0


[Site "https://www.chess.com"]

[Event "Titled Tuesday Blitz February 28 Early 2023"]
[White "Gutkin, Ilya"]
[Black "Schroeder, Jan-Christian"]
[WhiteFideId "16203470"]
[BlackFideId "24662259"]
[WhiteElo "2265"]
[BlackElo "2556"]
[Result "0-1"]
[Round "09"]
[TimeControl "180+2"]
[Date "2023.02.28"]
[WhiteClock "0:00:01"]
[BlackClock "0:00:33"]

1. Nf3 {[%clk 0:03:00]}  Nc6 {[%clk 0:02:54]} 2. e4 {[%clk 0:02:59]}  d6 {[%clk 0:02:54]} 3. d4 {[%clk 0:02:59]}  Nf6 {[%clk 0:02:52]} 4. d5 {[%clk 0:02:57]}  Ne5 {[%clk 0:02:51]} 5. Nxe5 {[%clk 0:02:56]}  dxe5 {[%clk 0:02:51]} 6. Nc3 {[%clk 0:02:50]}  g6 {[%clk 0:02:49]} 7. Bb5+ {[%clk 0:02:46]}  Bd7 {[%clk 0:02:46]} 8. Qe2 {[%clk 0:02:43]}  Bg7 {[%clk 0:02:46]} 9. O-O {[%clk 0:02:42]}  O-O {[%clk 0:02:46]} 10. Bxd7 {[%clk 0:02:37]}  Qxd7 {[%clk 0:02:45]} 11. Bg5 {[%clk 0:02:30]}  Ne8 {[%clk 0:02:44]} 12. Qb5 {[%clk 0:02:25]}  c6 {[%clk 0:02:36]} 13. dxc6 {[%clk 0:02:10]}  bxc6 {[%clk 0:02:37]} 14. Qa5 {[%clk 0:02:02]}  Nd6 {[%clk 0:02:33]} 15. Rfd1 {[%clk 0:01:55]}  h6 {[%clk 0:02:32]} 16. Be3 {[%clk 0:01:50]}  Qe6 {[%clk 0:02:32]} 17. b3 {[%clk 0:01:47]}  f5 {[%clk 0:02:32]} 18. f3 {[%clk 0:01:42]}  h5 {[%clk 0:02:23]} 19. Qa6 {[%clk 0:01:39]}  Rfc8 {[%clk 0:02:17]} 20. Bc5 {[%clk 0:01:26]}  f4 {[%clk 0:02:08]} 21. Rab1 {[%clk 0:00:50]}  g5 {[%clk 0:02:08]} 22. Bxd6 {[%clk 0:00:49]}  exd6 {[%clk 0:02:07]} 23. Qc4 {[%clk 0:00:50]}  Qxc4 {[%clk 0:02:00]} 24. bxc4 {[%clk 0:00:51]}  Bf8 {[%clk 0:02:00]} 25. Rb7 {[%clk 0:00:50]}  Rcb8 {[%clk 0:01:59]} 26. Rdb1 {[%clk 0:00:50]}  Rxb7 {[%clk 0:01:57]} 27. Rxb7 {[%clk 0:00:51]}  a5 {[%clk 0:01:57]} 28. Na4 {[%clk 0:00:49]}  g4 {[%clk 0:01:55]} 29. h3 {[%clk 0:00:47]}  g3 {[%clk 0:01:52]} 30. Kf1 {[%clk 0:00:47]}  d5 {[%clk 0:01:20]} 31. cxd5 {[%clk 0:00:39]}  cxd5 {[%clk 0:01:21]} 32. Nb6 {[%clk 0:00:32]}  Rd8 {[%clk 0:01:15]} 33. exd5 {[%clk 0:00:18]}  Bc5 {[%clk 0:01:13]} 34. c4 {[%clk 0:00:18]}  Bd4 {[%clk 0:01:01]} 35. Ke2 {[%clk 0:00:13]}  Re8 {[%clk 0:00:54]} 36. Kd3 {[%clk 0:00:13]}  e4+ {[%clk 0:00:50]} 37. Kxd4 {[%clk 0:00:10]}  e3 {[%clk 0:00:50]} 38. Na4 {[%clk 0:00:05]}  e2 {[%clk 0:00:49]} 39. Rb1 {[%clk 0:00:05]}  e1=Q {[%clk 0:00:49]} 40. Rxe1 {[%clk 0:00:06]}  Rxe1 {[%clk 0:00:49]} 41. Nc3 {[%clk 0:00:06]}  Kf7 {[%clk 0:00:44]} 42. c5 {[%clk 0:00:05]}  Ke7 {[%clk 0:00:44]} 43. c6 {[%clk 0:00:04]}  Rg1 {[%clk 0:00:41]} 44. Ne4 {[%clk 0:00:03]}  Rxg2 {[%clk 0:00:38]} 45. d6+ {[%clk 0:00:04]}  Ke6 {[%clk 0:00:38]} 46. d7 {[%clk 0:00:03]}  Ke7 {[%clk 0:00:38]} 47. Ke5 {[%clk 0:00:01]}  Rc2 {[%clk 0:00:33]} 0-1


[Site "https://www.chess.com"]

[Event "Titled Tuesday Blitz February 28 Early 2023"]
[White "Khamdamova, Afruza"]
[Black "Valle Maytin, Luis Enrique"]
[WhiteFideId "14210444"]
[BlackFideId "3503666"]
[WhiteElo "2210"]
[BlackElo "2225"]
[Result "1-0"]
[Round "09"]
[TimeControl "180+2"]
[Date "2023.02.28"]
[WhiteClock "0:00:51"]
[BlackClock "0:00:05"]

1. e4 {[%clk 0:03:00]}  c6 {[%clk 0:03:00]} 2. d4 {[%clk 0:03:00]}  d5 {[%clk 0:03:00]} 3. Nc3 {[%clk 0:02:59]}  dxe4 {[%clk 0:03:00]} 4. Nxe4 {[%clk 0:02:58]}  Nf6 {[%clk 0:03:01]} 5. Nxf6+ {[%clk 0:02:56]}  exf6 {[%clk 0:03:02]} 6. c3 {[%clk 0:02:56]}  Bd6 {[%clk 0:03:03]} 7. Bd3 {[%clk 0:02:57]}  O-O {[%clk 0:03:03]} 8. Qc2 {[%clk 0:02:57]}  Re8+ {[%clk 0:03:04]} 9. Ne2 {[%clk 0:02:57]}  h5 {[%clk 0:03:04]} 10. Be3 {[%clk 0:02:56]}  Nd7 {[%clk 0:03:03]} 11. O-O-O {[%clk 0:02:56]}  Nf8 {[%clk 0:03:03]} 12. h3 {[%clk 0:02:54]}  b5 {[%clk 0:03:02]} 13. d5 {[%clk 0:02:51]}  Qc7 {[%clk 0:01:47]} 14. dxc6 {[%clk 0:02:48]}  Qxc6 {[%clk 0:01:42]} 15. Nd4 {[%clk 0:02:45]}  Qb7 {[%clk 0:01:35]} 16. Bxb5 {[%clk 0:02:36]}  Bd7 {[%clk 0:01:34]} 17. Bxd7 {[%clk 0:02:35]}  Nxd7 {[%clk 0:01:34]} 18. g4 {[%clk 0:02:27]}  h4 {[%clk 0:01:14]} 19. g5 {[%clk 0:02:02]}  Be5 {[%clk 0:01:05]} 20. Rhg1 {[%clk 0:01:59]}  f5 {[%clk 0:00:54]} 21. g6 {[%clk 0:01:50]}  fxg6 {[%clk 0:00:18]} 22. Rxg6 {[%clk 0:01:34]}  f4 {[%clk 0:00:17]} 23. Bd2 {[%clk 0:01:32]}  Nf8 {[%clk 0:00:16]} 24. Rg4 {[%clk 0:01:30]}  Bxd4 {[%clk 0:00:16]} 25. cxd4 {[%clk 0:01:30]}  Rac8 {[%clk 0:00:16]} 26. Bc3 {[%clk 0:01:30]}  Qf3 {[%clk 0:00:15]} 27. Qb3+ {[%clk 0:01:17]}  Kh7 {[%clk 0:00:14]} 28. Rxh4+ {[%clk 0:01:17]}  Kg6 {[%clk 0:00:12]} 29. Rg1+ {[%clk 0:01:13]}  Kf5 {[%clk 0:00:11]} 30. Qb5+ {[%clk 0:01:05]}  Kf6 {[%clk 0:00:10]} 31. Qg5+ {[%clk 0:01:01]}  Ke6 {[%clk 0:00:06]} 32. d5+ {[%clk 0:01:01]}  Kd6 {[%clk 0:00:06]} 33. Qxf4+ {[%clk 0:00:56]}  Qxf4+ {[%clk 0:00:05]} 34. Rxf4 {[%clk 0:00:57]}  Kxd5 {[%clk 0:00:05]} 35. Rxg7 {[%clk 0:00:50]}  Ne6 {[%clk 0:00:05]} 36. Rf5+ {[%clk 0:00:50]}  Ke4 {[%clk 0:00:05]} 37. Re5+ {[%clk 0:00:51]}  Kf4 {[%clk 0:00:05]} 38. Rf7# {[%clk 0:00:51]} 1-0


[Site "https://www.chess.com"]

[Event "Titled Tuesday Blitz February 28 Early 2023"]
[White "Sliwicki, Damian"]
[Black "Sargissyan, Sargis"]
[WhiteFideId "1127128"]
[BlackFideId "13303210"]
[WhiteElo "1988"]
[BlackElo "2109"]
[Result "1-0"]
[Round "09"]
[TimeControl "180+2"]
[Date "2023.02.28"]
[WhiteClock "0:00:18"]
[BlackClock "0:00:01"]

1. e4 {[%clk 0:02:59]}  c5 {[%clk 0:02:59]} 2. Nf3 {[%clk 0:02:55]}  d6 {[%clk 0:02:59]} 3. d4 {[%clk 0:02:55]}  cxd4 {[%clk 0:03:00]} 4. Qxd4 {[%clk 0:02:56]}  Nc6 {[%clk 0:02:56]} 5. Bb5 {[%clk 0:02:54]}  Bd7 {[%clk 0:02:56]} 6. Bxc6 {[%clk 0:02:54]}  Bxc6 {[%clk 0:02:57]} 7. Nc3 {[%clk 0:02:55]}  e5 {[%clk 0:02:55]} 8. Qd3 {[%clk 0:02:55]}  h6 {[%clk 0:02:54]} 9. Be3 {[%clk 0:02:53]}  Nf6 {[%clk 0:02:54]} 10. O-O-O {[%clk 0:02:52]}  Be7 {[%clk 0:02:52]} 11. Kb1 {[%clk 0:02:51]}  O-O {[%clk 0:02:51]} 12. g4 {[%clk 0:02:50]}  Nxg4 {[%clk 0:02:01]} 13. Rhg1 {[%clk 0:02:50]}  Nxe3 {[%clk 0:02:01]} 14. Qxe3 {[%clk 0:02:51]}  Kh7 {[%clk 0:02:00]} 15. Nxe5 {[%clk 0:02:50]}  Bf6 {[%clk 0:01:56]} 16. Ng4 {[%clk 0:02:42]}  Qe7 {[%clk 0:01:48]} 17. Rd5 {[%clk 0:02:19]}  Bxc3 {[%clk 0:01:36]} 18. Rh5 {[%clk 0:01:55]}  Qe6 {[%clk 0:00:15]} 19. Qxc3 {[%clk 0:01:22]}  Rg8 {[%clk 0:00:13]} 20. b3 {[%clk 0:01:11]}  Bxe4 {[%clk 0:00:13]} 21. Qh3 {[%clk 0:01:02]}  Bf5 {[%clk 0:00:08]} 22. Nf6+ {[%clk 0:00:25]}  Qxf6 {[%clk 0:00:07]} 23. Rxf5 {[%clk 0:00:26]}  Qe6 {[%clk 0:00:06]} 24. Qd3 {[%clk 0:00:19]}  Kh8 {[%clk 0:00:04]} 25. Rg3 {[%clk 0:00:19]}  Rac8 {[%clk 0:00:03]} 26. Re3 {[%clk 0:00:18]}  Qg6 {[%clk 0:00:01]} 27. Kb2 {[%clk 0:00:18]} 1-0


[Site "https://www.chess.com"]